[Event "Early-Titled-Tuesday-Blitz-March-19-2024"]
[Site "Chess.com"]
[Date "2024.03.19"]
[Round "1"]
[White "Bauman_Guy"]
[Black "Eliwood44"]
[Result "1-0"]
[WhiteElo "2933"]
[BlackElo "2526"]
[TimeControl "180+1"]
[EndTime "8:01:41 PDT"]
[Termination "Bauman_Guy won by resignation"]

1. e4 {[%clk 0:03:00.9]} 1... e5 {[%clk 0:02:53.5]} 2. Nf3 {[%clk 0:03:00.8]}
2... Nc6 {[%clk 0:02:54.1]} 3. Bb5 {[%clk 0:03:01.2]} 3... Nf6 {[%clk
0:02:54.2]} 4. O-O {[%clk 0:03:01.1]} 4... Nxe4 {[%clk 0:02:54.1]} 5. Re1 {[%clk
0:03:01.8]} 5... Nd6 {[%clk 0:02:51.7]} 6. a4 {[%clk 0:03:02.4]} 6... Be7 {[%clk
0:02:48]} 7. Nc3 {[%clk 0:03:02.3]} 7... O-O {[%clk 0:02:46.7]} 8. d4 {[%clk
0:03:02.9]} 8... exd4 {[%clk 0:02:44]} 9. Nd5 {[%clk 0:03:02.8]} 9... Re8 {[%clk
0:02:31.4]} 10. Bf4 {[%clk 0:02:50.7]} 10... Nf5 {[%clk 0:02:14.4]} 11. Bxc7
{[%clk 0:02:40.3]} 1-0

[Event "Early-Titled-Tuesday-Blitz-March-19-2024"]
[Site "Chess.com"]
[Date "2024.03.19"]
[Round "1"]
[White "SlavenPastar"]
[Black "dianamirza"]
[Result "1-0"]
[WhiteElo "2585"]
[BlackElo "2001"]
[TimeControl "180+1"]
[EndTime "8:02:08 PDT"]
[Termination "SlavenPastar won by resignation"]

1. Nf3 {[%clk 0:02:59.4]} 1... d5 {[%clk 0:02:50.7]} 2. g3 {[%clk 0:02:58.7]}
2... c5 {[%clk 0:02:50.8]} 3. Bg2 {[%clk 0:02:58.9]} 3... Nc6 {[%clk 0:02:51.7]}
4. O-O {[%clk 0:02:58.6]} 4... e5 {[%clk 0:02:49.6]} 5. c4 {[%clk 0:02:58.4]}
5... d4 {[%clk 0:02:49.6]} 6. d3 {[%clk 0:02:58.6]} 6... Nf6 {[%clk 0:02:49.2]}
7. e3 {[%clk 0:02:58.9]} 7... Be7 {[%clk 0:02:48.8]} 8. exd4 {[%clk 0:02:59.1]}
8... Nxd4 {[%clk 0:02:48.4]} 9. Nxe5 {[%clk 0:02:58.2]} 9... Be6 {[%clk
0:02:46.4]} 10. Bxb7 {[%clk 0:02:53.2]} 10... Rb8 {[%clk 0:02:46.5]} 11. Bg2
{[%clk 0:02:51.1]} 11... O-O {[%clk 0:02:38.9]} 12. Nc3 {[%clk 0:02:46.1]} 12...
Bd6 {[%clk 0:02:32.9]} 13. Nc6 {[%clk 0:02:45.1]} 13... Qc7 {[%clk 0:02:32.5]}
14. Nxd4 {[%clk 0:02:44.3]} 14... cxd4 {[%clk 0:02:27.2]} 15. Nb5 {[%clk
0:02:39.6]} 15... Qd7 {[%clk 0:02:03.7]} 16. Nxd6 {[%clk 0:02:39.4]} 16... Qxd6
{[%clk 0:02:04.6]} 17. Bf4 {[%clk 0:02:39.7]} 1-0

[Event "Early-Titled-Tuesday-Blitz-March-19-2024"]
[Site "Chess.com"]
[Date "2024.03.19"]
[Round "1"]
[White "nihalsarin"]
[Black "Revan_2002"]
[Result "1-0"]
[WhiteElo "3173"]
[BlackElo "2576"]
[TimeControl "180+1"]
[EndTime "8:02:34 PDT"]
[Termination "nihalsarin won by resignation"]

1. a3 {[%clk 0:02:56.3]} 1... e5 {[%clk 0:02:52]} 2. c4 {[%clk 0:02:53.3]} 2...
Nf6 {[%clk 0:02:52.1]} 3. d3 {[%clk 0:02:50.2]} 3... Nc6 {[%clk 0:02:49.5]} 4.
Nf3 {[%clk 0:02:47.8]} 4... a5 {[%clk 0:02:49.1]} 5. Nc3 {[%clk 0:02:40.4]} 5...
d5 {[%clk 0:02:47.9]} 6. cxd5 {[%clk 0:02:40]} 6... Nxd5 {[%clk 0:02:48.8]} 7.
e3 {[%clk 0:02:40.4]} 7... Be7 {[%clk 0:02:45.5]} 8. Be2 {[%clk 0:02:39.4]} 8...
O-O {[%clk 0:02:43.5]} 9. O-O {[%clk 0:02:39.6]} 9... Be6 {[%clk 0:02:43.9]} 10.
Bd2 {[%clk 0:02:30.9]} 10... Qd7 {[%clk 0:02:42.2]} 11. Rc1 {[%clk 0:02:19]}
11... Rfd8 {[%clk 0:02:39.3]} 12. Ne4 {[%clk 0:02:08.2]} 12... f6 {[%clk
0:02:38.3]} 13. Qc2 {[%clk 0:02:05.8]} 13... a4 {[%clk 0:02:31.3]} 14. h3 {[%clk
0:01:54.2]} 14... Nb6 {[%clk 0:02:28.7]} 15. Nc5 {[%clk 0:01:54.2]} 15... Bxc5
{[%clk 0:02:27.1]} 16. Qxc5 {[%clk 0:01:55.1]} 16... Ra5 {[%clk 0:02:27.1]} 17.
Bxa5 {[%clk 0:01:53.7]} 1-0

[Event "Early-Titled-Tuesday-Blitz-March-19-2024"]
[Site "Chess.com"]
[Date "2024.03.19"]
[Round "1"]
[White "LikeWater"]
[Black "gpsji27"]
[Result "1-0"]
[WhiteElo "2676"]
[BlackElo "2336"]
[TimeControl "180+1"]
[EndTime "8:03:09 PDT"]
[Termination "LikeWater won by resignation"]

1. e4 {[%clk 0:02:58.6]} 1... e5 {[%clk 0:02:59.6]} 2. f4 {[%clk 0:02:57.5]}
2... exf4 {[%clk 0:02:59.4]} 3. Bc4 {[%clk 0:02:57.1]} 3... Qh4+ {[%clk
0:02:56.8]} 4. Kf1 {[%clk 0:02:56.9]} 4... Bc5 {[%clk 0:02:54.4]} 5. d4 {[%clk
0:02:53.3]} 5... Bb6 {[%clk 0:02:53.5]} 6. Nf3 {[%clk 0:02:45.8]} 6... Qe7
{[%clk 0:02:38.6]} 7. Nc3 {[%clk 0:02:44.4]} 7... d6 {[%clk 0:02:34.4]} 8. Bxf4
{[%clk 0:02:40.1]} 8... Bg4 {[%clk 0:02:31]} 9. Nd5 {[%clk 0:02:18.3]} 9... Qxe4
{[%clk 0:02:20.6]} 10. Qd2 {[%clk 0:02:07.6]} 10... Bxf3 {[%clk 0:01:56.8]} 11.
Re1 {[%clk 0:02:01.6]} 11... Bxg2+ {[%clk 0:01:54.7]} 12. Qxg2 {[%clk
0:01:59.4]} 12... Qxe1+ {[%clk 0:01:48.9]} 13. Kxe1 {[%clk 0:02:00.3]} 13... Nd7
{[%clk 0:01:46.2]} 14. Qxg7 {[%clk 0:01:54.3]} 1-0

[Event "Early-Titled-Tuesday-Blitz-March-19-2024"]
[Site "Chess.com"]
[Date "2024.03.19"]
[Round "1"]
[White "Beca95"]
[Black "RedFirePanda"]
[Result "1-0"]
[WhiteElo "2979"]
[BlackElo "2540"]
[TimeControl "180+1"]
[EndTime "8:03:14 PDT"]
[Termination "Beca95 won by resignation"]

1. d4 {[%clk 0:02:59.3]} 1... Nf6 {[%clk 0:02:59.4]} 2. c4 {[%clk 0:02:59.8]}
2... e6 {[%clk 0:02:46.6]} 3. Nc3 {[%clk 0:02:59]} 3... d5 {[%clk 0:02:42.6]} 4.
Bg5 {[%clk 0:02:57.3]} 4... c6 {[%clk 0:02:35.5]} 5. Nf3 {[%clk 0:02:56]} 5...
Be7 {[%clk 0:02:33.4]} 6. e3 {[%clk 0:02:55.6]} 6... O-O {[%clk 0:02:33.1]} 7.
Qc2 {[%clk 0:02:55.3]} 7... Nbd7 {[%clk 0:02:24.2]} 8. h4 {[%clk 0:02:54.4]}
8... h6 {[%clk 0:02:12.9]} 9. Bf4 {[%clk 0:02:52.3]} 9... Re8 {[%clk 0:02:08]}
10. O-O-O {[%clk 0:02:41.8]} 10... a5 {[%clk 0:02:02]} 11. g4 {[%clk 0:02:41.4]}
11... Nxg4 {[%clk 0:01:57.3]} 12. Rg1 {[%clk 0:02:41.3]} 12... h5 {[%clk
0:01:57.2]} 13. Bh3 {[%clk 0:02:38.9]} 13... Ndf6 {[%clk 0:01:56.3]} 14. Ng5
{[%clk 0:02:38.5]} 14... g6 {[%clk 0:01:49.4]} 15. f3 {[%clk 0:02:36.4]} 15...
Nh6 {[%clk 0:01:42.2]} 16. Nxe6 {[%clk 0:02:24.8]} 16... Bxe6 {[%clk 0:01:41.5]}
17. Bxe6 {[%clk 0:02:24.7]} 17... Kg7 {[%clk 0:01:27.8]} 18. Bxh6+ {[%clk
0:02:17.4]} 18... Kxh6 {[%clk 0:01:26.8]} 19. Bxf7 {[%clk 0:02:17.3]} 1-0

[Event "Early-Titled-Tuesday-Blitz-March-19-2024"]
[Site "Chess.com"]
[Date "2024.03.19"]
[Round "1"]
[White "DanielDardha2005"]
[Black "Rogarcia1"]
[Result "1-0"]
[WhiteElo "2872"]
[BlackElo "2492"]
[TimeControl "180+1"]
[EndTime "8:03:19 PDT"]
[Termination "DanielDardha2005 won by resignation"]

1. d4 {[%clk 0:03:00.9]} 1... d5 {[%clk 0:02:57.8]} 2. c4 {[%clk 0:02:58.6]}
2... c6 {[%clk 0:02:51.3]} 3. Nf3 {[%clk 0:02:58.2]} 3... Nf6 {[%clk 0:02:49.5]}
4. e3 {[%clk 0:02:58]} 4... Bf5 {[%clk 0:02:44.9]} 5. Nc3 {[%clk 0:02:56.8]}
5... e6 {[%clk 0:02:45.3]} 6. Nh4 {[%clk 0:02:53.1]} 6... Be4 {[%clk 0:02:45.7]}
7. f3 {[%clk 0:02:52.5]} 7... Bg6 {[%clk 0:02:45.9]} 8. Bd2 {[%clk 0:02:52]}
8... Be7 {[%clk 0:02:43.7]} 9. cxd5 {[%clk 0:02:50.1]} 9... exd5 {[%clk
0:02:35.4]} 10. Qb3 {[%clk 0:02:47.9]} 10... Qc7 {[%clk 0:02:04.1]} 11. Nxg6
{[%clk 0:02:40]} 11... hxg6 {[%clk 0:02:04.1]} 12. O-O-O {[%clk 0:02:40.7]}
12... Nbd7 {[%clk 0:01:51.6]} 13. e4 {[%clk 0:02:36.3]} 13... Nb6 {[%clk
0:01:38.6]} 14. e5 {[%clk 0:02:35.4]} 14... Nfd7 {[%clk 0:01:38.6]} 15. f4
{[%clk 0:02:35.6]} 15... a5 {[%clk 0:01:37.7]} 16. Kb1 {[%clk 0:02:34.1]} 16...
a4 {[%clk 0:01:37.2]} 17. Qc2 {[%clk 0:02:34.7]} 17... Nc4 {[%clk 0:01:30.1]}
18. Bxc4 {[%clk 0:02:28.5]} 18... dxc4 {[%clk 0:01:30.1]} 19. d5 {[%clk
0:02:29.4]} 19... cxd5 {[%clk 0:01:25.2]} 20. Nxd5 {[%clk 0:02:30.3]} 1-0

[Event "Early-Titled-Tuesday-Blitz-March-19-2024"]
[Site "Chess.com"]
[Date "2024.03.19"]
[Round "1"]
[White "lamomiajunior"]
[Black "emeli_chess"]
[Result "0-1"]
[WhiteElo "2732"]
[BlackElo "2426"]
[TimeControl "180+1"]
[EndTime "8:03:41 PDT"]
[Termination "emeli_chess won by resignation"]

1. d4 {[%clk 0:03:00.9]} 1... Nf6 {[%clk 0:02:49.2]} 2. c4 {[%clk 0:03:01.4]}
2... e6 {[%clk 0:02:48.1]} 3. Nc3 {[%clk 0:03:02]} 3... Bb4 {[%clk 0:02:47.1]}
4. e3 {[%clk 0:03:02.5]} 4... b6 {[%clk 0:02:46]} 5. Ne2 {[%clk 0:03:00.3]} 5...
Ba6 {[%clk 0:02:43.8]} 6. a3 {[%clk 0:03:00.8]} 6... Bxc3+ {[%clk 0:02:43.3]} 7.
Nxc3 {[%clk 0:03:01.2]} 7... d5 {[%clk 0:02:42.9]} 8. cxd5 {[%clk 0:02:59.8]}
8... Bxf1 {[%clk 0:02:40.5]} 9. Kxf1 {[%clk 0:03:00.7]} 9... exd5 {[%clk
0:02:39.6]} 10. Qf3 {[%clk 0:02:58.7]} 10... O-O {[%clk 0:02:27.5]} 11. h4
{[%clk 0:02:54.8]} 11... Re8 {[%clk 0:02:22.6]} 12. h5 {[%clk 0:02:52.3]} 12...
h6 {[%clk 0:02:14.6]} 13. Bd2 {[%clk 0:02:45.6]} 13... Ne4 {[%clk 0:02:14.1]}
14. Nxe4 {[%clk 0:02:45.6]} 14... Rxe4 {[%clk 0:02:05.2]} 15. Rc1 {[%clk
0:02:45.8]} 15... c6 {[%clk 0:02:03.8]} 16. g3 {[%clk 0:02:42]} 16... Qd7 {[%clk
0:01:58.3]} 17. Kg2 {[%clk 0:02:41.9]} 17... Na6 {[%clk 0:01:57]} 18. b4 {[%clk
0:02:40.2]} 18... Nc7 {[%clk 0:01:53.2]} 19. a4 {[%clk 0:02:40.6]} 19... Ne6
{[%clk 0:01:42.6]} 20. Rc2 {[%clk 0:02:38.4]} 20... Re8 {[%clk 0:01:31.1]} 21.
Rhc1 {[%clk 0:02:37.2]} 21... Ng5 {[%clk 0:01:30.8]} 22. Qe2 {[%clk 0:02:30.8]}
22... Qh3+ {[%clk 0:01:30.4]} 23. Kg1 {[%clk 0:02:31.2]} 23... Rh4 {[%clk
0:01:23.7]} 24. gxh4 {[%clk 0:02:18]} 24... Nf3+ {[%clk 0:01:22.1]} 25. Qxf3
{[%clk 0:02:18.4]} 25... Qxf3 {[%clk 0:01:21.4]} 26. Rxc6 {[%clk 0:02:18.5]}
26... Re4 {[%clk 0:01:19.5]} 27. Kf1 {[%clk 0:02:18.9]} 27... Rxh4 {[%clk
0:01:17.4]} 0-1

[Event "Early-Titled-Tuesday-Blitz-March-19-2024"]
[Site "Chess.com"]
[Date "2024.03.19"]
[Round "1"]
[White "Aradhya2000"]
[Black "MarijaKuznecova"]
[Result "1-0"]
[WhiteElo "2706"]
[BlackElo "2358"]
[TimeControl "180+1"]
[EndTime "8:03:43 PDT"]
[Termination "Aradhya2000 won by resignation"]

1. d4 {[%clk 0:03:00.9]} 1... Nf6 {[%clk 0:02:59.4]} 2. c4 {[%clk 0:03:00.9]}
2... c5 {[%clk 0:02:59.6]} 3. dxc5 {[%clk 0:03:00.8]} 3... e6 {[%clk 0:02:57.4]}
4. Be3 {[%clk 0:03:01.1]} 4... Nc6 {[%clk 0:02:54.2]} 5. Nf3 {[%clk 0:02:52.3]}
5... Ng4 {[%clk 0:02:53.6]} 6. Bg5 {[%clk 0:02:52.3]} 6... Qa5+ {[%clk
0:02:48.8]} 7. Nc3 {[%clk 0:02:52]} 7... Bxc5 {[%clk 0:02:47.7]} 8. e3 {[%clk
0:02:52.4]} 8... Bb4 {[%clk 0:02:28.8]} 9. Qc2 {[%clk 0:02:14.6]} 9... Nce5
{[%clk 0:02:11.6]} 10. Bf4 {[%clk 0:02:08.3]} 10... d5 {[%clk 0:01:49.3]} 11.
Nxe5 {[%clk 0:02:04.9]} 11... Nxe5 {[%clk 0:01:47]} 12. Bxe5 {[%clk 0:02:05.1]}
12... f6 {[%clk 0:01:46.2]} 13. Bg3 {[%clk 0:02:04.5]} 13... O-O {[%clk
0:01:41.2]} 14. Bd3 {[%clk 0:02:00.2]} 14... f5 {[%clk 0:01:33.3]} 15. O-O
{[%clk 0:01:57.2]} 15... d4 {[%clk 0:01:29.7]} 16. exd4 {[%clk 0:01:55.2]} 16...
Qd8 {[%clk 0:01:29.4]} 17. Be5 {[%clk 0:01:45.7]} 1-0

[Event "Early-Titled-Tuesday-Blitz-March-19-2024"]
[Site "Chess.com"]
[Date "2024.03.19"]
[Round "1"]
[White "Rutricks"]
[Black "rhwr"]
[Result "1-0"]
[WhiteElo "2706"]
[BlackElo "2354"]
[TimeControl "180+1"]
[EndTime "8:03:43 PDT"]
[Termination "Rutricks won by resignation"]

1. e4 {[%clk 0:02:59.6]} 1... c5 {[%clk 0:02:59.7]} 2. f4 {[%clk 0:02:54.3]}
2... e6 {[%clk 0:02:58.8]} 3. Qe2 {[%clk 0:02:48.6]} 3... Nc6 {[%clk 0:02:57.4]}
4. Nf3 {[%clk 0:02:48]} 4... Qc7 {[%clk 0:02:49.5]} 5. g3 {[%clk 0:02:44]} 5...
b6 {[%clk 0:02:46.6]} 6. Bg2 {[%clk 0:02:42.6]} 6... Bb7 {[%clk 0:02:47]} 7. O-O
{[%clk 0:02:43]} 7... Nd4 {[%clk 0:02:46.2]} 8. Nxd4 {[%clk 0:02:38.6]} 8...
cxd4 {[%clk 0:02:47.1]} 9. c3 {[%clk 0:02:38.8]} 9... Bc5 {[%clk 0:02:36.5]} 10.
Kh1 {[%clk 0:02:39.1]} 10... Ne7 {[%clk 0:02:32.3]} 11. b4 {[%clk 0:02:36.7]}
11... a5 {[%clk 0:01:32.4]} 12. bxc5 {[%clk 0:02:35.9]} 12... bxc5 {[%clk
0:01:33.3]} 13. Na3 {[%clk 0:02:32.1]} 13... Ba6 {[%clk 0:01:33.1]} 14. c4
{[%clk 0:02:29.8]} 14... Nc6 {[%clk 0:01:32.4]} 15. d3 {[%clk 0:02:23.7]} 15...
O-O {[%clk 0:01:32.5]} 16. Nb5 {[%clk 0:02:22.4]} 16... Bxb5 {[%clk 0:01:30.6]}
17. cxb5 {[%clk 0:02:23.3]} 17... Ne7 {[%clk 0:01:28.2]} 18. a4 {[%clk
0:02:23.5]} 18... d6 {[%clk 0:01:26.2]} 19. Ba3 {[%clk 0:02:21.2]} 19... Rab8
{[%clk 0:01:25.3]} 20. Rac1 {[%clk 0:02:21.3]} 20... Nc8 {[%clk 0:01:25.1]} 21.
e5 {[%clk 0:02:21.6]} 21... dxe5 {[%clk 0:01:23.9]} 22. Rxc5 {[%clk 0:02:19.4]}
22... Qd7 {[%clk 0:01:21.7]} 23. Qxe5 {[%clk 0:02:17.7]} 23... Nb6 {[%clk
0:01:17.3]} 24. Rc7 {[%clk 0:02:12.4]} 1-0

[Event "Early-Titled-Tuesday-Blitz-March-19-2024"]
[Site "Chess.com"]
[Date "2024.03.19"]
[Round "1"]
[White "joksijoksi"]
[Black "TV27"]
[Result "1-0"]
[WhiteElo "2626"]
[BlackElo "2243"]
[TimeControl "180+1"]
[EndTime "8:04:01 PDT"]
[Termination "joksijoksi won by resignation"]

1. d4 {[%clk 0:02:58.9]} 1... f5 {[%clk 0:02:58.3]} 2. c4 {[%clk 0:02:57.5]}
2... Nf6 {[%clk 0:02:57.5]} 3. g3 {[%clk 0:02:56]} 3... g6 {[%clk 0:02:57]} 4.
Bg2 {[%clk 0:02:55]} 4... Bg7 {[%clk 0:02:56.4]} 5. Nc3 {[%clk 0:02:55.5]} 5...
d6 {[%clk 0:02:55.1]} 6. Nf3 {[%clk 0:02:55.2]} 6... O-O {[%clk 0:02:54]} 7. O-O
{[%clk 0:02:55.2]} 7... c6 {[%clk 0:02:53.9]} 8. Qc2 {[%clk 0:02:50.5]} 8... Na6
{[%clk 0:02:44.6]} 9. Re1 {[%clk 0:02:49.5]} 9... Qe8 {[%clk 0:02:35.2]} 10. a3
{[%clk 0:02:42.5]} 10... e5 {[%clk 0:02:33.8]} 11. dxe5 {[%clk 0:02:40.1]} 11...
dxe5 {[%clk 0:02:33.6]} 12. e4 {[%clk 0:02:40.7]} 12... f4 {[%clk 0:02:33]} 13.
b4 {[%clk 0:02:36.3]} 13... Nc7 {[%clk 0:02:24.7]} 14. Bb2 {[%clk 0:02:36.2]}
14... Nh5 {[%clk 0:02:22.5]} 15. Rad1 {[%clk 0:02:35.2]} 15... Bg4 {[%clk
0:02:20.4]} 16. Rd3 {[%clk 0:02:28.5]} 16... Ne6 {[%clk 0:01:59]} 17. Nh4 {[%clk
0:02:11.2]} 17... Nd4 {[%clk 0:01:54.8]} 18. Qd2 {[%clk 0:02:11.2]} 18... fxg3
{[%clk 0:01:50.9]} 19. hxg3 {[%clk 0:02:11.3]} 19... Rd8 {[%clk 0:01:49.5]} 20.
Na4 {[%clk 0:02:04.4]} 20... Qf7 {[%clk 0:01:37]} 21. Nc5 {[%clk 0:02:00.2]}
21... b6 {[%clk 0:01:33.9]} 22. Bxd4 {[%clk 0:01:57.3]} 22... bxc5 {[%clk
0:01:24.2]} 23. Bxc5 {[%clk 0:01:57.2]} 23... Rxd3 {[%clk 0:01:23.9]} 24. Qxd3
{[%clk 0:01:57.8]} 24... Rd8 {[%clk 0:01:22.3]} 25. Qxd8+ {[%clk 0:01:55.8]}
25... Bf8 {[%clk 0:01:21.3]} 26. Qxf8+ {[%clk 0:01:53.6]} 26... Qxf8 {[%clk
0:01:21.3]} 27. Bxf8 {[%clk 0:01:54.5]} 27... Kxf8 {[%clk 0:01:21.7]} 28. f3
{[%clk 0:01:54.7]} 1-0

[Event "Early-Titled-Tuesday-Blitz-March-19-2024"]
[Site "Chess.com"]
[Date "2024.03.19"]
[Round "1"]
[White "Sanan_Sjugirov"]
[Black "Willhaven3"]
[Result "1-0"]
[WhiteElo "3030"]
[BlackElo "2554"]
[TimeControl "180+1"]
[EndTime "8:04:21 PDT"]
[Termination "Sanan_Sjugirov won by checkmate"]

1. e4 {[%clk 0:03:00.9]} 1... Nf6 {[%clk 0:02:59.1]} 2. e5 {[%clk 0:03:00.6]}
2... Nd5 {[%clk 0:02:59.5]} 3. d4 {[%clk 0:03:01.3]} 3... d6 {[%clk 0:02:59.8]}
4. exd6 {[%clk 0:02:59.9]} 4... cxd6 {[%clk 0:02:59.8]} 5. c4 {[%clk 0:02:59.6]}
5... Nb6 {[%clk 0:03:00.2]} 6. Nc3 {[%clk 0:02:59.4]} 6... g6 {[%clk 0:03:00.6]}
7. Bg5 {[%clk 0:02:58.9]} 7... Bg7 {[%clk 0:03:00.8]} 8. Qd2 {[%clk 0:02:57.6]}
8... Nc6 {[%clk 0:02:59.8]} 9. d5 {[%clk 0:02:55]} 9... Ne5 {[%clk 0:02:59.4]}
10. b3 {[%clk 0:02:54.7]} 10... h6 {[%clk 0:02:59.2]} 11. Bf4 {[%clk 0:02:51.3]}
11... Bf5 {[%clk 0:02:56.5]} 12. Be2 {[%clk 0:02:48.5]} 12... g5 {[%clk
0:02:55.5]} 13. Be3 {[%clk 0:02:43.7]} 13... Bg6 {[%clk 0:02:46.8]} 14. Nf3
{[%clk 0:02:39.3]} 14... f5 {[%clk 0:02:39.9]} 15. Nd4 {[%clk 0:02:26.2]} 15...
Bf6 {[%clk 0:02:32.9]} 16. g3 {[%clk 0:02:03.1]} 16... Qd7 {[%clk 0:02:24.2]}
17. Rc1 {[%clk 0:02:02.3]} 17... O-O {[%clk 0:02:20.6]} 18. h4 {[%clk
0:01:52.5]} 18... f4 {[%clk 0:02:03.2]} 19. gxf4 {[%clk 0:01:52.2]} 19... gxf4
{[%clk 0:02:03.3]} 20. Bxf4 {[%clk 0:01:53.1]} 20... h5 {[%clk 0:01:52.2]} 21.
Ne6 {[%clk 0:01:34.8]} 21... Rf7 {[%clk 0:01:51.9]} 22. Rg1 {[%clk 0:01:30.2]}
22... Kh7 {[%clk 0:01:51.9]} 23. Bxe5 {[%clk 0:01:26.7]} 23... dxe5 {[%clk
0:01:35.3]} 24. Rxg6 {[%clk 0:01:25]} 24... Kxg6 {[%clk 0:01:36.2]} 25. Bd3+
{[%clk 0:01:24.5]} 25... e4 {[%clk 0:01:25.2]} 26. Bxe4# {[%clk 0:01:25.4]} 1-0

[Event "Early-Titled-Tuesday-Blitz-March-19-2024"]
[Site "Chess.com"]
[Date "2024.03.19"]
[Round "1"]
[White "ajeale2"]
[Black "Binary010"]
[Result "0-1"]
[WhiteElo "2461"]
[BlackElo "2829"]
[TimeControl "180+1"]
[EndTime "8:04:21 PDT"]
[Termination "Binary010 won by resignation"]

1. d4 {[%clk 0:03:00.9]} 1... Nf6 {[%clk 0:02:57.5]} 2. Bf4 {[%clk 0:03:01.1]}
2... d5 {[%clk 0:02:57.1]} 3. e3 {[%clk 0:03:01]} 3... c5 {[%clk 0:02:57.1]} 4.
Nd2 {[%clk 0:03:01.1]} 4... Nc6 {[%clk 0:02:57.6]} 5. c3 {[%clk 0:03:00.9]} 5...
Bf5 {[%clk 0:02:51.3]} 6. Ngf3 {[%clk 0:03:00.5]} 6... e6 {[%clk 0:02:51.5]} 7.
Qb3 {[%clk 0:02:54.3]} 7... Qc8 {[%clk 0:02:50.5]} 8. c4 {[%clk 0:02:52]} 8...
cxd4 {[%clk 0:02:41.1]} 9. exd4 {[%clk 0:02:51]} 9... Be7 {[%clk 0:02:23.3]} 10.
Rc1 {[%clk 0:02:50.3]} 10... O-O {[%clk 0:02:23]} 11. Be2 {[%clk 0:02:47.5]}
11... dxc4 {[%clk 0:02:17.7]} 12. Nxc4 {[%clk 0:02:46]} 12... Nd5 {[%clk
0:02:15.4]} 13. Bg3 {[%clk 0:02:37.6]} 13... Na5 {[%clk 0:02:05.8]} 14. Qa4
{[%clk 0:02:15.4]} 14... Nxc4 {[%clk 0:01:53.7]} 15. Rxc4 {[%clk 0:02:15.2]}
15... Qd8 {[%clk 0:01:54.4]} 16. Qb3 {[%clk 0:02:15.6]} 16... b5 {[%clk
0:01:47.6]} 17. Rc1 {[%clk 0:02:05.1]} 17... Bb4+ {[%clk 0:01:45.4]} 18. Kf1
{[%clk 0:01:51.6]} 18... a6 {[%clk 0:01:41.6]} 19. h3 {[%clk 0:01:45.3]} 19...
Rc8 {[%clk 0:01:38.9]} 20. Rxc8 {[%clk 0:01:39]} 20... Qxc8 {[%clk 0:01:39.8]}
21. Kg1 {[%clk 0:01:39.6]} 21... Bc2 {[%clk 0:01:27.4]} 0-1

[Event "Early-Titled-Tuesday-Blitz-March-19-2024"]
[Site "Chess.com"]
[Date "2024.03.19"]
[Round "1"]
[White "Alexei_Gubajdullin"]
[Black "GolfBeforeChess"]
[Result "1-0"]
[WhiteElo "2657"]
[BlackElo "2304"]
[TimeControl "180+1"]
[EndTime "8:04:27 PDT"]
[Termination "Alexei_Gubajdullin won by resignation"]

1. Nf3 {[%clk 0:02:59.7]} 1... Nf6 {[%clk 0:03:00.5]} 2. g3 {[%clk 0:02:59.2]}
2... d5 {[%clk 0:03:00.4]} 3. Bg2 {[%clk 0:02:59]} 3... c6 {[%clk 0:03:01.1]} 4.
O-O {[%clk 0:02:58.9]} 4... Bf5 {[%clk 0:03:01.2]} 5. d3 {[%clk 0:02:58.9]} 5...
h6 {[%clk 0:02:59.1]} 6. Nbd2 {[%clk 0:02:59.8]} 6... e6 {[%clk 0:02:58.7]} 7.
Qe1 {[%clk 0:02:56.9]} 7... Be7 {[%clk 0:02:58]} 8. e4 {[%clk 0:02:56.6]} 8...
dxe4 {[%clk 0:02:56.3]} 9. dxe4 {[%clk 0:02:56.4]} 9... Bh7 {[%clk 0:02:56.8]}
10. e5 {[%clk 0:02:55.1]} 10... Nd5 {[%clk 0:02:55.3]} 11. Ne4 {[%clk
0:02:53.1]} 11... O-O {[%clk 0:02:52.1]} 12. a3 {[%clk 0:02:50.8]} 12... Nd7
{[%clk 0:02:48.6]} 13. c4 {[%clk 0:02:50]} 13... N5b6 {[%clk 0:02:48.8]} 14. b4
{[%clk 0:02:49.3]} 14... Nxc4 {[%clk 0:02:43.4]} 15. Bf4 {[%clk 0:02:44.6]}
15... Ncb6 {[%clk 0:02:38.2]} 16. Nd6 {[%clk 0:02:38]} 16... Qc7 {[%clk
0:02:29]} 17. Rc1 {[%clk 0:02:36]} 17... Nd5 {[%clk 0:02:29.1]} 18. Bd2 {[%clk
0:02:22.9]} 18... Bxd6 {[%clk 0:02:28]} 19. exd6 {[%clk 0:02:22.6]} 19... Qxd6
{[%clk 0:02:28.3]} 20. Qe2 {[%clk 0:02:17.8]} 20... Rfd8 {[%clk 0:02:18.6]} 21.
Rfd1 {[%clk 0:02:15.1]} 21... Qe7 {[%clk 0:02:13.7]} 22. Be1 {[%clk 0:02:03.5]}
22... N7f6 {[%clk 0:02:10.8]} 23. Qb2 {[%clk 0:02:01.5]} 23... Nb6 {[%clk
0:02:06.4]} 24. Ne5 {[%clk 0:01:57.4]} 24... Rxd1 {[%clk 0:02:04.8]} 25. Rxd1
{[%clk 0:01:57.1]} 25... Rd8 {[%clk 0:02:03.8]} 26. Rc1 {[%clk 0:01:56.6]} 26...
Be4 {[%clk 0:01:58]} 27. Bh3 {[%clk 0:01:52.7]} 27... Qd6 {[%clk 0:01:51]} 28.
f3 {[%clk 0:01:33.2]} 28... Bh7 {[%clk 0:01:48.8]} 29. Bf2 {[%clk 0:01:31]}
29... Nfd7 {[%clk 0:01:47.7]} 30. Bd4 {[%clk 0:01:23.2]} 30... Nxe5 {[%clk
0:01:37.8]} 31. Bxe5 {[%clk 0:01:22.9]} 31... f6 {[%clk 0:01:38.2]} 32. Bxd6
{[%clk 0:01:22.1]} 1-0

[Event "Early-Titled-Tuesday-Blitz-March-19-2024"]
[Site "Chess.com"]
[Date "2024.03.19"]
[Round "1"]
[White "Robert_Chessmood"]
[Black "PelinGorki"]
[Result "1-0"]
[WhiteElo "2984"]
[BlackElo "2542"]
[TimeControl "180+1"]
[EndTime "8:04:28 PDT"]
[Termination "Robert_Chessmood won by resignation"]

1. e4 {[%clk 0:03:00.9]} 1... d6 {[%clk 0:03:00.2]} 2. d4 {[%clk 0:03:00.8]}
2... Nf6 {[%clk 0:03:00.3]} 3. Nc3 {[%clk 0:03:01.2]} 3... c6 {[%clk 0:02:58.9]}
4. f4 {[%clk 0:03:00.2]} 4... Qa5 {[%clk 0:02:58.9]} 5. Bd2 {[%clk 0:02:59.3]}
5... e5 {[%clk 0:02:58.8]} 6. Nd5 {[%clk 0:02:48]} 6... Qd8 {[%clk 0:02:53.4]}
7. Nxf6+ {[%clk 0:02:48.1]} 7... Qxf6 {[%clk 0:02:52.1]} 8. fxe5 {[%clk
0:02:35.4]} 8... dxe5 {[%clk 0:02:53]} 9. Nf3 {[%clk 0:02:35.8]} 9... exd4
{[%clk 0:02:42.3]} 10. Bc4 {[%clk 0:02:35.8]} 10... Bg4 {[%clk 0:02:41.2]} 11.
O-O {[%clk 0:02:32.7]} 11... Bc5 {[%clk 0:02:41.5]} 12. h3 {[%clk 0:02:27.1]}
12... h5 {[%clk 0:02:32.4]} 13. e5 {[%clk 0:01:48.5]} 13... Qg6 {[%clk
0:01:59.5]} 14. Bd3 {[%clk 0:01:46.4]} 14... Qe6 {[%clk 0:01:47]} 15. hxg4
{[%clk 0:01:40.5]} 15... hxg4 {[%clk 0:01:47.9]} 16. Ng5 {[%clk 0:01:40.8]}
16... Qh6 {[%clk 0:01:38.8]} 17. Qxg4 {[%clk 0:01:39.6]} 17... Nd7 {[%clk
0:01:33.7]} 18. Qh3 {[%clk 0:01:03.6]} 1-0